bitfinex-derivatives/quotes_ETHF0:USTF0_20250326
["timestamp","ask_amount","ask_price","bid_price","bid_amount"]
[1743011520695,1.65079,2007.4,2007.3,0.00748148]
[1743011520899,3.06189,2007.4,2007.3,0.00748148]
[1743011524001,3.06189,2007.4,2007.3,1.00372148]
[1743011524208,3.06189,2007.4,2007.3,0.00748148]
[1743011525095,3.06189,2007.4,2007.3,1.42978148]
[1743011528099,3.06189,2007.4,2007.3,0.00748148]
[1743011531001,3.06189,2007.4,2007.3,1.31648148]
[1743011532805,3.06189,2007.4,2007.3,2.31272148]
[1743011533006,0.99619,2007.4,2007.3,2.31272148]
[1743011533207,0.99619,2007.4,2007.3,2.81503792]
[1743011533607,0.6494,2007.6,2007.3,1.81879792]
[1743011533911,0.99612,2007.6,2007.5,0.99609]
[1743011534101,0.99608,2007.7,2007.6,0.99609]
[1743011534306,5.52831148,2007.8,2007.7,0.99604]
[1743011534607,4.21131148,2007.8,2007.7,1.4181]
[1743011535014,4.21131148,2007.8,2007.7,2.41414]
[1743011535603,4.21131148,2007.8,2007.7,1.4181]
[1743011535911,5.53391148,2007.8,2007.7,1.4181]
[1743011537216,4.21131148,2007.8,2007.7,1.4181]
[1743011537509,5.53391148,2007.8,2007.7,1.4181]
[1743011538006,4.21131148,2007.8,2007.7,2.41414]
[1743011538204,4.21127148,2007.8,2007.7,2.91708776]
[1743011538915,3.21528148,2007.8,2007.7,2.91708776]
[1743011539815,4.21127148,2007.8,2007.7,2.91708776]
[1743011540107,0.99614,2007.6,2007.5,0.99612]
[1743011540306,0.99614,2007.6,2007.5,1.49936857]
[1743011540904,3.03157,2007.7,2007.6,0.99609]
[1743011541212,3.03157,2007.7,2007.6,1.49938587]
[1743011541413,3.03157,2007.7,2007.6,0.50329587]
[1743011541615,3.03157,2007.7,2007.6,1.49938587]
[1743011541806,3.03157,2007.7,2007.6,1.83849587]
[1743011542315,3.03157,2007.7,2007.6,2.24849587]
[1743011543108,3.03157,2007.7,2007.6,3.24458587]
[1743011543313,3.03157,2007.7,2007.6,2.24849587]
[1743011543509,3.03157,2007.7,2007.6,3.24458587]
[1743011543706,3.03157,2007.7,2007.6,2.24849587]
[1743011544112,3.03157,2007.7,2007.6,3.24458587]
[1743011544308,3.03157,2007.7,2007.6,2.24849587]
[1743011544510,3.03157,2007.7,2007.6,3.24458587]
[1743011544712,3.03157,2007.7,2007.6,2.24849587]
[1743011544914,3.03157,2007.7,2007.6,1.83849587]
[1743011545212,3.03157,2007.7,2007.6,2.83458587]
[1743011545807,3.03157,2007.7,2007.6,1.83849587]
[1743011546009,3.03157,2007.7,2007.6,2.83458587]
[1743011547020,3.03157,2007.7,2007.6,2.83476547]
[1743011547418,3.03157,2007.7,2007.6,1.83867547]
[1743011547607,3.03157,2007.7,2007.6,2.83476547]
[1743011547809,4.21131148,2007.8,2007.7,0.99604]
[1743011548118,4.21131148,2007.8,2007.7,2.93461547]
[1743011548919,4.21131148,2007.8,2007.7,2.93454202]
[1743011550909,4.21131148,2007.8,2007.7,2.93449581]
[1743011552823,4.21131148,2007.8,2007.7,2.93448355]
[1743011553026,1.00351148,2007.8,2007.7,2.93448355]
[1743011553213,0.00748148,2007.8,2007.7,2.93448355]
[1743011554125,4.20366,2008.1,2008.0,0.99589]
[1743011554327,4.20366,2008.1,2008.0,1.49923355]
[1743011554917,3.2078,2008.1,2008.0,1.49923355]
[1743011555126,4.20364,2008.1,2008.0,1.49923355]
[1743011555422,4.20364,2008.1,2008.0,1.49900853]
[1743011556127,4.20364,2008.1,2008.0,0.50311853]
[1743011556514,4.88684,2008.1,2008.0,1.3443]
[1743011557535,0.99608,2007.7,2007.6,0.99606]
[1743011557741,0.99608,2007.7,2007.6,0.50317066]
[1743011557742,0.99604,2007.7,2007.6,0.50317066]
[1743011558034,0.99619,2007.4,2007.3,0.00748148]
[1743011558242,0.99619,2007.4,2007.3,0.51081839]
[1743011558840,0.99619,2007.4,2007.3,0.00748148]
[1743011559042,2.32189,2007.4,2007.3,0.00748148]
[1743011560735,2.32189,2007.4,2007.3,1.40978148]
[1743011566048,2.32189,2007.4,2007.3,2.40602148]
[1743011566243,2.32189,2007.4,2007.3,1.40978148]
[1743011566639,2.32189,2007.4,2007.3,0.00748148]
[1743011571743,4.82189,2007.4,2007.3,1.48e-06]
[1743011571943,0.99664,2006.5,2006.4,0.99664]
[1743011572344,0.99669,2006.4,2006.3,4.20452]
[1743011573146,0.99669,2006.4,2006.3,6.97062]
[1743011573546,0.99669,2006.4,2006.3,5.9739]
[1743011573843,0.99678,2006.2,2006.1,0.00748148]
[1743011574440,2.41208,2006.2,2006.1,0.00748148]
[1743011575147,2.41208,2006.2,2005.9,3.8891]
[1743011575148,0.99688,2006.0,2005.9,3.2078]
[1743011576752,0.99688,2006.0,2005.9,4.5569]
[1743011578257,0.99688,2006.0,2005.9,1.3491]
[1743011578955,2.32638,2006.0,2005.9,1.3491]
[1743011583564,0.99698,2005.8,2005.7,0.00748148]
[1743011583753,4.20478,2005.8,2005.7,0.00748148]
[1743011584152,5.54828,2005.8,2005.7,0.00748148]
[1743011587252,5.54828,2005.8,2005.7,1.00451148]
[1743011587454,5.54828,2005.8,2005.7,0.00748148]
[1743011587859,5.54828,2005.8,2005.7,1.37618148]
[1743011591659,4.20478,2005.8,2005.7,2.37321148]
[1743011592454,3.2078,2005.8,2005.7,2.37321148]
[1743011592960,0.99691,2006.0,2005.9,0.99693]
[1743011593665,0.99691,2006.0,2005.9,2.36873]
[1743011594167,0.99691,2006.0,2005.9,1.3718]
[1743011594361,2.31511,2006.0,2005.9,1.3718]
[1743011594570,2.31511,2006.0,2005.9,3.67653]
[1743011595671,0.99691,2006.0,2005.9,3.67653]
[1743011595869,0.99676,2006.3,2006.2,0.99674]
[1743011596367,0.99673,2006.4,2006.3,0.99674]
[1743011596570,3.2078,2007.0,2006.9,0.99644]
[1743011597562,3.2078,2007.0,2006.9,2.33084]
[1743011597973,1.00381148,2007.2,2007.1,0.99634]
[1743011598369,0.00748148,2007.2,2007.1,0.99634]
[1743011599875,1.00377148,2007.2,2007.1,0.99634]
[1743011600770,0.00748148,2007.2,2007.1,0.99634]
[1743011602370,1.00377148,2007.2,2007.1,0.99634]
[1743011603467,0.00748148,2007.2,2007.1,0.99634]
[1743011603866,1.00377148,2007.2,2007.1,0.99634]
[1743011604272,0.00748148,2007.2,2007.1,0.99634]
[1743011604777,1.00377148,2007.2,2007.1,0.99634]
[1743011605076,0.00748148,2007.2,2007.1,0.99634]
[1743011606581,1.00377148,2007.2,2007.1,0.99634]
[1743011616385,0.00748148,2007.2,2007.1,0.99634]
[1743011616578,1.00377148,2007.2,2007.1,0.99634]
[1743011617088,0.00748148,2007.2,2007.1,0.99634]
[1743011617286,3.04703,2007.6,2007.5,0.99614]
[1743011617481,0.99613,2007.6,2007.5,0.99614]
[1743011617681,4.20388,2007.7,2007.6,0.99609]
[1743011617887,5.54058,2007.7,2007.6,0.99609]
[1743011622380,4.5445,2007.7,2007.6,0.99609]
[1743011622578,5.54054,2007.7,2007.6,0.99609]
[1743011623478,0.99627,2007.3,2007.2,0.99622]
[1743011624085,4.88613,2007.4,2007.3,0.99624]
[1743011624789,3.8899,2007.4,2007.3,0.99624]
[1743011624982,4.88609,2007.4,2007.3,1.49881357]
[1743011625182,6.30859,2007.4,2007.3,1.49881357]
[1743011625783,5.3124,2007.4,2007.3,1.49881357]
[1743011625991,3.2078,2007.4,2007.3,2.16651357]
[1743011626185,4.20399,2007.4,2007.3,0.50257357]
[1743011626391,0.99624,2007.3,2007.2,2.35168]
[1743011626587,3.05364,2007.3,2007.2,1.85920635]
[1743011626890,3.05364,2007.3,2007.2,2.85550723]
[1743011628295,3.05364,2007.3,2007.2,0.50381723]
[1743011628592,2.49094,2007.1,2006.8,0.99647]
[1743011628797,0.99649,2006.9,2006.8,1.384]
[1743011629185,2.35769,2006.9,2006.8,1.384]
[1743011629384,3.06369,2006.9,2006.8,1.384]
[1743011633091,3.06369,2006.9,2006.8,2.38049]
[1743011633792,3.06369,2006.9,2006.8,1.384]
[1743011636793,3.06369,2006.9,2006.8,2.38049]
[1743011638189,2.35769,2006.9,2006.8,2.38049]
[1743011638391,0.99642,2007.0,2006.9,0.99639]
[1743011638591,1.312,2007.0,2006.9,0.99639]
[1743011638793,0.99639,2007.0,2006.9,0.99639]
[1743011639693,5.51619,2007.1,2007.0,0.99639]
[1743011640498,5.51619,2007.1,2007.0,1.49919588]
[1743011640700,4.5198,2007.1,2007.0,1.49919588]
[1743011640899,4.20414,2007.1,2007.0,1.49919588]
[1743011641497,5.52124,2007.1,2007.0,1.49919588]
[1743011641697,3.2078,2007.1,2007.0,1.49918657]
[1743011641893,1.3171,2007.3,2007.0,0.50279657]
[1743011642101,2.31335,2007.3,2007.2,0.99629]
[1743011642300,2.31335,2007.3,2007.2,1.49908657]
[1743011642601,1.3171,2007.3,2007.2,1.49908657]
[1743011642803,2.31334,2007.3,2007.2,1.49908657]
[1743011643302,1.3171,2007.3,2007.2,0.99629]
[1743011643498,4.20403,2007.4,2007.3,0.99624]
[1743011643695,4.20403,2007.4,2007.3,1.49899771]
[1743011644294,3.2078,2007.4,2007.3,1.49899771]
[1743011645002,1.3171,2007.5,2007.4,0.99619]
[1743011645199,1.3171,2007.5,2007.4,1.49890314]
[1743011645597,1.3171,2007.5,2007.4,1.4988701]
[1743011646002,2.31324,2007.5,2007.4,0.99619]
[1743011647902,2.31324,2007.5,2007.4,1.49886321]
[1743011648107,1.3171,2007.5,2007.4,1.49886321]
[1743011648307,2.31324,2007.5,2007.4,1.49886321]
[1743011648501,1.3171,2007.5,2007.4,1.49886321]
[1743011648894,5.58227,2007.7,2007.4,0.50267321]
[1743011649100,6.93817,2007.7,2007.6,0.99609]
[1743011649503,4.5637,2007.7,2007.6,1.49877733]
[1743011649895,5.55974,2007.7,2007.6,0.99609]
[1743011650705,5.55974,2007.7,2007.6,1.49878082]
[1743011650909,5.55974,2007.7,2007.6,0.99609]
[1743011651098,5.55974,2007.7,2007.6,1.49877416]
[1743011651309,5.55974,2007.7,2007.6,0.99609]
[1743011653000,5.55974,2007.7,2007.6,1.49875263]
[1743011654111,5.55974,2007.7,2007.6,0.99609]
[1743011654997,3.2078,2007.7,2007.6,1.49864394]
[1743011655199,3.2078,2007.7,2007.6,1.49855994]
[1743011655415,0.00748148,2007.9,2007.8,0.99599]
[1743011655904,0.00748148,2007.9,2007.8,1.49839832]
[1743011656302,4.86912,2008.4,2008.0,2.48974]
[1743011656610,5.49869,2008.4,2008.3,0.99574]
[1743011657715,4.503,2008.4,2008.3,1.66364]
[1743011658008,5.49869,2008.4,2008.3,1.66364]
[1743011659211,4.503,2008.4,2008.3,1.66364]
[1743011659717,3.2078,2008.4,2008.3,1.66364]
[1743011661411,4.5781,2008.4,2008.3,1.66364]
[1743011664309,1.3703,2008.4,2008.3,1.66364]
[1743011665013,1.64934,2008.5,2008.4,0.99569]
[1743011665205,2.95554,2008.5,2008.4,2.32789]
[1743011668919,1.9599,2008.5,2008.4,2.32789]
[1743011669519,2.95554,2008.5,2008.4,2.32789]
[1743011674526,2.95554,2008.5,2008.4,2.32789]
[1743011675123,1.9599,2008.5,2008.4,2.32789]
[1743011675826,2.95554,2008.5,2008.4,2.32789]
[1743011678317,2.95554,2008.5,2008.3,0.6679]
[1743011678318,1.9599,2008.5,2008.1,0.71958148]
[1743011678631,4.20359,2008.2,2008.1,0.00748148]
[1743011679632,4.89919,2008.2,2008.1,0.00748148]
[1743011684235,4.89919,2008.2,2008.1,1.43238148]
[1743011684931,4.89919,2008.2,2008.1,2.93143022]
[1743011685133,1.69139,2008.2,2008.1,2.93143022]
[1743011686543,0.99577,2008.3,2008.2,0.99575]
[1743011686838,1.3881,2008.3,2008.2,2.92385874]
[1743011687041,1.3881,2008.3,2008.2,3.60415874]
[1743011687635,2.38384,2008.3,2008.2,3.60415874]
[1743011689838,2.38384,2008.3,2008.2,3.6043538]
[1743011690242,2.38384,2008.3,2008.2,2.6086038]
[1743011690444,2.38384,2008.3,2008.2,3.6043938]
[1743011690640,1.3881,2008.3,2008.2,3.6043938]
[1743011690835,2.38384,2008.3,2008.2,3.6043938]
[1743011691842,2.38384,2008.3,2008.2,3.60439535]
[1743011692743,1.3881,2008.3,2008.2,3.60439535]
[1743011693242,2.38384,2008.3,2008.2,3.60439535]
[1743011693846,1.71273,2008.4,2008.3,0.99574]
[1743011694041,3.12833,2008.4,2008.3,2.89195096]
[1743011694936,3.12833,2008.4,2008.3,1.89621096]
[1743011695335,3.12833,2008.4,2008.3,2.89195096]
[1743011695536,3.12833,2008.4,2008.3,2.89197294]
[1743011696543,2.1326,2008.4,2008.3,2.89197294]
[1743011696738,1.4156,2008.4,2008.3,2.89197294]
[1743011697540,2.41129,2008.4,2008.3,2.89197294]
[1743011698948,1.4156,2008.4,2008.3,2.89197294]
[1743011699344,4.85716,2008.5,2008.4,0.99569]
[1743011699551,6.26256,2008.5,2008.4,2.86013626]
[1743011701450,6.26256,2008.5,2008.4,0.50344626]
[1743011701651,0.99579,2008.2,2008.1,0.00748148]
[1743011701844,4.20359,2008.2,2008.1,1.50686296]
[1743011702547,4.20359,2008.2,2008.1,1.00332148]
[1743011702843,4.20359,2008.2,2008.1,0.51103738]
[1743011703040,4.91869,2008.2,2008.1,0.51103738]
[1743011704043,4.91869,2008.2,2008.1,2.84587738]
[1743011704252,4.91869,2008.2,2008.1,2.84587066]
[1743011705843,4.91869,2008.2,2008.1,1.85003066]
[1743011706744,3.2078,2008.2,2008.1,2.84587066]
[1743011706949,0.99579,2008.2,2008.1,2.84587066]
[1743011707847,0.99579,2008.2,2008.1,1.85003066]
[1743011708054,0.99579,2008.2,2008.1,2.84587066]
[1743011709556,2.40118,2008.3,2008.2,0.99579]
[1743011709855,2.40118,2008.3,2008.2,3.58723918]
[1743011710153,2.40118,2008.3,2008.2,4.24273918]
[1743011714158,2.40118,2008.3,2008.2,4.24313994]
[1743011715851,0.99579,2008.2,2008.1,0.00748148]
[1743011716052,4.97928,2008.1,2007.5,0.6917]
[1743011716251,0.99609,2007.6,2007.5,3.0835]
[1743011717246,2.37699,2007.6,2007.5,3.0835]
[1743011717853,0.99609,2007.6,2007.5,3.0835]
[1743011719761,0.99609,2007.6,2007.5,2.0874]
[1743011719963,2.38789,2007.6,2007.5,2.0874]
[1743011720462,2.38789,2007.6,2007.5,3.08354]
[1743011720660,2.38789,2007.6,2007.5,2.0874]
[1743011720858,2.38789,2007.6,2007.5,3.08354]
[1743011721261,0.99609,2007.6,2007.5,3.08351]
[1743011721867,2.32888,2007.7,2007.6,0.99609]
[1743011722062,2.32888,2007.7,2007.6,2.43109]
[1743011722759,2.32888,2007.7,2007.6,1.435]
[1743011722958,2.32888,2007.7,2007.6,2.43109]
[1743011723360,2.32888,2007.7,2007.6,1.435]
[1743011723555,2.32888,2007.7,2007.6,2.43109]
[1743011725965,2.32888,2007.7,2007.6,1.435]
[1743011726153,2.49028,2007.6,2007.3,0.70248148]
[1743011726360,1.71324,2007.5,2007.4,1.4213]
[1743011726660,3.06194,2007.5,2007.4,2.41749]
[1743011727161,0.99614,2007.5,2007.4,2.41744]
[1743011727762,2.34484,2007.6,2007.5,0.99614]
[1743011728067,2.34484,2007.6,2007.5,1.3867]
[1743011728658,1.3487,2007.6,2007.5,2.38284]
[1743011728858,4.20383,2007.8,2007.7,0.99604]
[1743011729563,5.49913,2007.8,2007.7,2.32154]
[1743011731460,5.49913,2007.8,2007.7,2.97124]
[1743011731667,5.49913,2007.8,2007.7,1.3255]
[1743011731869,6.99318,2007.8,2007.5,0.6497]
[1743011732168,0.99614,2007.6,2007.5,1.3255]
[1743011732363,0.99614,2007.6,2007.5,2.32164]
[1743011732555,2.29144,2007.6,2007.5,2.32164]
[1743011732966,0.99608,2007.7,2007.6,0.99609]
[1743011733270,0.99608,2007.7,2007.6,1.68089]
[1743011733271,2.41308,2007.7,2007.6,1.68089]
[1743011737164,0.99604,2007.7,2007.6,2.34275]
[1743011737368,2.36774,2007.7,2007.6,2.34275]
[1743011737574,2.36774,2007.7,2007.6,3.71965]
[1743011741067,1.3717,2007.7,2007.6,3.71965]
[1743011741373,0.99588,2008.1,2008.0,0.99584]
[1743011741764,2.37798,2008.1,2008.0,0.99584]
[1743011742167,2.37798,2008.1,2008.0,1.4297]
[1743011742672,0.99603,2007.8,2007.7,1.67208]
[1743011743169,0.99598,2007.9,2007.8,0.99594]
[1743011743576,0.99599,2007.8,2007.7,1.6721]
[1743011744677,1.69188,2007.9,2007.8,0.99599]
[1743011744873,0.99599,2007.8,2007.7,3.0966]
[1743011746067,2.38349,2007.8,2007.7,3.0966]
[1743011748869,1.3875,2007.8,2007.7,3.0966]
[1743011749084,0.99593,2008.0,2007.7,2.1006]
[1743011749375,2.29593,2008.0,2007.9,0.99592]
[1743011750675,3.8932,2008.2,2008.1,0.99584]
[1743011750867,4.5559,2008.2,2008.1,0.99584]
[1743011751279,4.5559,2008.2,2008.1,2.32044]
[1743011751472,3.2078,2008.2,2008.1,2.32044]
[1743011751678,0.99573,2008.4,2008.3,0.99574]
[1743011752276,2.35697,2008.5,2008.4,0.99569]
[1743011752481,0.99571,2008.4,2008.3,0.99571]
[1743011752682,2.34381,2008.4,2008.3,0.99571]
[1743011752879,0.99574,2008.3,2008.0,1.4033]
[1743011753070,0.99574,2008.3,2007.7,3.368]
[1743011753071,4.20364,2008.2,2007.7,3.368]
[1743011753273,0.99593,2008.0,2007.9,0.99592]
[1743011753673,2.34403,2008.0,2007.9,0.99592]
[1743011757677,0.99594,2007.9,2007.8,2.32057]
[1743011757876,2.40954,2007.9,2007.8,2.32057]
[1743011759089,0.99604,2007.7,2007.6,0.99607]
[1743011759784,1.69974,2007.7,2007.6,0.99607]
[1743011759983,0.99609,2007.6,2007.5,0.6832]
[1743011760186,0.99619,2007.4,2007.3,0.00748148]
[1743011760487,0.99619,2007.4,2007.3,1.36358148]
[1743011760989,2.37039,2007.4,2007.3,1.36358148]
[1743011762086,2.37039,2007.4,2007.3,0.00748148]
[1743011762789,5.73739,2007.4,2007.3,0.00748148]
[1743011768890,1.3742,2007.4,2007.3,1.00372148]
[1743011769197,0.99619,2007.5,2007.4,0.99616]
[1743011769381,0.99619,2007.5,2007.4,2.30356]
[1743011773584,4.21142148,2007.6,2007.5,0.99614]
[1743011773795,4.21142148,2007.6,2007.5,2.31044]
[1743011776498,1.00362148,2007.6,2007.5,2.31044]
[1743011778686,1.00362148,2007.6,2007.5,1.3143]
[1743011778892,0.99619,2007.4,2007.3,0.00748148]
[1743011779097,0.99619,2007.4,2007.3,1.44448148]
[1743011779298,4.20399,2007.4,2007.3,1.44448148]
[1743011779496,4.20399,2007.4,2007.3,2.44072148]
[1743011779694,5.56899,2007.4,2007.3,2.44072148]
[1743011779896,5.56899,2007.4,2007.3,1.44448148]
[1743011780701,5.56899,2007.4,2007.3,2.44072148]
[1743011780899,4.5728,2007.4,2007.3,2.44072148]
[1743011781201,3.2078,2007.4,2007.3,2.44072148]
[1743011781496,0.99616,2007.5,2007.4,0.99619]
[1743011781704,0.99616,2007.5,2007.4,2.38619]
[1743011784801,2.36862148,2007.6,2007.5,0.99614]
[1743011785002,0.00748148,2007.6,2007.5,2.36354]
[1743011785808,0.00748148,2007.6,2007.5,3.01824]
[1743011786898,1.00357148,2007.6,2007.5,3.01824]
[1743011787502,1.00357148,2007.6,2007.5,1.3674]
[1743011787704,1.71327148,2007.6,2007.5,1.3674]
[1743011788612,1.71327148,2007.6,2007.3,0.66218148]
[1743011788613,0.99614,2007.5,2007.4,0.99617]
[1743011788905,6.24604,2007.5,2007.4,1.343]
[1743011790117,0.99619,2007.4,2007.3,0.00748148]
[1743011790305,2.35409,2007.4,2007.3,0.00748148]
[1743011790607,5.71909,2007.4,2007.3,0.00748148]
[1743011792006,3.2078,2009.7,2008.5,2.48902]
[1743011792206,1.3362,2009.1,2009.0,0.9954]
[1743011792403,1.3362,2009.1,2009.0,4.2032]
[1743011792704,0.99527,2009.3,2009.2,0.9953]
[1743011792908,0.99533,2009.2,2009.1,0.99531]
[1743011793109,0.99535,2009.1,2009.0,5.61454148]
[1743011793407,0.99535,2009.1,2009.0,6.12892361]
[1743011793609,4.20315,2009.1,2009.0,5.61458148]
[1743011793909,4.20315,2009.1,2009.0,6.12892797]
[1743011794211,4.20315,2009.1,2009.0,5.61458148]
[1743011795800,0.99549,2008.8,2008.7,4.20331]
[1743011796207,4.20329,2008.8,2008.7,5.60231]
[1743011796704,4.20329,2008.8,2008.7,4.6068]
[1743011796904,4.20329,2008.8,2008.7,3.2078]
[1743011798106,0.99559,2008.6,2008.5,0.00748148]
[1743011798610,4.20339,2008.6,2008.5,0.00748148]
[1743011806616,4.20339,2008.6,2008.5,1.00312148]
[1743011806809,0.99559,2008.6,2008.5,2.40742148]
[1743011808008,4.20339,2008.6,2008.5,1.41178148]
[1743011808515,4.20339,2008.6,2008.5,2.40742148]
[1743011809510,4.20339,2008.6,2008.5,1.41178148]
[1743011809712,4.20339,2008.6,2008.5,2.40742148]
[1743011810211,4.20339,2008.6,2008.5,1.41178148]
[1743011810417,4.20339,2008.6,2008.5,2.40742148]
[1743011811506,4.20339,2008.6,2008.5,5.61522148]
[1743011812523,4.20339,2008.6,2008.5,4.61958148]
[1743011812815,4.20339,2008.6,2008.5,5.61522148]
[1743011813614,4.20339,2008.6,2008.5,4.61958148]
[1743011813815,4.20339,2008.6,2008.5,3.21528148]
[1743011814215,0.99574,2008.3,2008.2,3.2078]
[1743011814612,4.20354,2008.3,2008.2,3.2078]
[1743011815006,5.51674,2008.3,2008.2,3.2078]
[1743011817511,0.99584,2008.1,2008.0,0.00748148]
[1743011817920,4.20364,2008.1,2008.0,0.00748148]
[1743011819112,5.54314,2008.1,2008.0,0.00748148]
[1743011825531,5.54314,2008.1,2008.0,4.21117148]
[1743011826030,5.54314,2008.1,2008.0,3.21528148]
[1743011826428,5.54314,2008.1,2008.0,4.57138148]
[1743011830729,5.54314,2008.1,2008.0,5.56727148]
[1743011835338,0.99582,2008.2,2008.1,0.99584]
[1743011835639,0.99582,2008.2,2008.1,3.47971061]
[1743011835834,4.20362,2008.2,2008.1,3.47971061]
[1743011836337,4.20362,2008.2,2008.1,2.96394]
[1743011837339,4.20362,2008.2,2008.1,3.47985254]
[1743011838436,1.3476,2008.3,2008.2,0.99579]
[1743011838437,2.34334,2008.3,2008.2,0.99579]
[1743011838636,5.55114,2008.3,2008.2,3.58760254]
[1743011839039,4.20354,2008.3,2008.2,3.58760254]
[1743011840832,1.3773,2008.4,2008.3,0.99574]
[1743011841033,0.00748148,2008.5,2008.4,0.99569]
[1743011841237,3.21528148,2008.5,2008.4,2.93570254]
[1743011841435,0.00748148,2008.5,2008.4,2.93570254]
[1743011841835,0.00748148,2008.5,2008.4,2.41979]
[1743011842041,0.00748148,2008.5,2008.4,2.93586097]
[1743011842239,0.99547,2008.9,2008.8,0.99549]
[1743011842544,3.2078,2008.9,2008.8,4.71922925]
[1743011842940,0.99531,2009.3,2009.2,0.99527]
[1743011843138,4.20311,2009.3,2009.2,0.99527]
[1743011843338,1.70823,2009.4,2009.3,0.99525]
[1743011843539,4.91603,2009.4,2009.3,0.99525]
[1743011844338,5.57343,2009.4,2009.3,1.3773]
[1743011845346,5.57343,2009.4,2009.3,2.37255]
[1743011845547,5.57343,2009.4,2009.3,1.3773]
[1743011846244,0.99525,2009.3,2009.2,0.6743]
[1743011846443,0.9953,2009.2,2009.1,4.20315]
[1743011846746,0.9953,2009.2,2009.1,4.6137]
[1743011846950,4.2031,2009.2,2009.1,4.6137]
[1743011847143,5.5906,2009.2,2009.1,4.6137]
[1743011847839,5.5906,2009.2,2009.1,5.60905]
[1743011848041,5.5906,2009.2,2009.1,4.6137]
[1743011851648,5.5906,2009.2,2009.0,1.00284148]
[1743011851649,0.99535,2009.1,2009.0,0.00748148]
[1743011851853,2.33935,2009.1,2009.0,1.38128148]
[1743011852057,5.54715,2009.1,2009.0,0.00748148]
[1743011852954,5.54715,2009.1,2009.0,1.38128148]
[1743011854051,5.54715,2009.1,2009.0,2.37668148]
[1743011854358,0.99534,2009.2,2009.1,0.99535]
[1743011854562,5.60984,2009.2,2009.1,5.54455]
[1743011854856,4.6145,2009.2,2009.1,5.54455]
[1743011855054,5.6098,2009.2,2009.1,5.54455]
[1743011859256,5.6098,2009.2,2009.1,2.33675]
[1743011859454,5.6098,2009.2,2009.1,5.54455]
[1743011859961,0.99535,2009.1,2009.0,1.00285148]
[1743011860155,3.00195,2009.1,2009.0,3.21528148]
[1743011860458,6.20975,2009.1,2009.0,3.21528148]
[1743011864856,6.20975,2009.1,2009.0,4.21068148]
[1743011865058,6.20975,2009.1,2009.0,3.21528148]
[1743011865466,1.3159,2009.1,2009.0,4.21068148]
[1743011865668,1.3159,2009.1,2009.0,6.71067274]
[1743011866267,1.3159,2009.1,2009.0,6.71064049]
[1743011867166,2.31125,2009.1,2009.0,6.71088951]
[1743011867367,2.31125,2009.1,2009.0,6.71090451]
[1743011867563,1.3159,2009.1,2009.0,6.71090451]
[1743011867759,2.31125,2009.1,2009.0,6.71090451]
[1743011869061,2.31125,2009.1,2009.0,6.19558148]
[1743011869270,2.31125,2009.1,2009.0,6.71153449]
[1743011870056,5.51905,2009.1,2009.0,5.71613449]
[1743011870266,5.51905,2009.1,2009.0,3.73123449]
[1743011870663,5.51905,2009.1,2009.0,0.52343449]
[1743011870863,5.51905,2009.1,2009.0,3.73123449]
[1743011871058,5.51905,2009.1,2009.0,0.52423844]
[1743011873076,5.51905,2009.1,2009.0,0.52471432]
[1743011874974,5.51905,2009.1,2009.0,0.52466345]
[1743011876680,5.51905,2009.1,2009.0,0.52464742]
[1743011878476,5.51905,2009.1,2008.7,3.2078]
[1743011878477,0.99549,2008.8,2008.7,3.2078]
[1743011878674,0.99549,2008.8,2008.7,3.72496885]
[1743011878880,4.20329,2008.8,2008.7,0.51716885]
[1743011879178,0.99564,2008.5,2008.4,4.623]
[1743011879378,0.99564,2008.5,2008.4,0.51721674]
[1743011879584,4.20344,2008.5,2008.4,0.51721674]
[1743011880080,5.60784,2008.5,2008.4,0.51721674]
[1743011880779,0.99574,2008.3,2008.2,0.00748148]
[1743011880985,0.99574,2008.3,2008.2,0.52431572]
[1743011881186,4.20354,2008.3,2008.2,0.52431572]
[1743011881779,4.20354,2008.3,2008.2,0.00748148]
[1743011884483,4.20354,2008.3,2008.2,1.48e-06]
[1743011884788,4.20354,2008.3,2007.6,2.0212]
[1743011884789,0.99604,2007.7,2007.6,2.0212]
[1743011899292,0.99614,2007.5,2007.4,0.00748148]
[1743011900105,3.06834,2007.5,2007.4,0.00748148]
[1743011902900,3.06834,2007.5,2007.4,1.48e-06]
[1743011903106,11.39834,2007.5,2007.4,1.48e-06]
[1743011905105,0.99659,2006.6,2006.5,1.3745]
[1743011905903,2.33959,2006.6,2006.5,1.3745]
[1743011907606,2.33959,2006.6,2006.5,0.6882]
[1743011907803,1.343,2006.6,2006.3,0.00748148]
[1743011908002,0.99669,2006.4,2006.3,0.00748148]
[1743011908206,4.35869,2006.4,2006.3,0.00748148]
[1743011908410,5.66209,2006.4,2006.3,0.00748148]
[1743011910811,5.66309,2006.4,2006.3,0.00748148]
[1743011911405,2.30009,2006.4,2006.3,0.00748148]
[1743011911612,0.99669,2006.4,2006.3,0.00748148]
[1743011911908,0.99669,2006.4,2006.3,3.09572148]
[1743011912104,0.99669,2006.4,2006.3,3.76682148]
[1743011912610,0.99669,2006.4,2006.3,2.77008148]
[1743011913107,0.99669,2006.4,2006.3,6.97462148]
[1743011916114,0.99669,2006.5,2006.4,2.40904]
[1743011917109,0.99662,2006.6,2006.5,0.9966]
[1743011918928,2.40464,2006.7,2006.6,0.99659]
[1743011919210,2.40464,2006.7,2006.6,1.3568]
[1743011920110,2.40464,2006.7,2006.6,2.35339]
[1743011920306,2.40464,2006.7,2006.6,1.3568]
[1743011925114,2.40464,2006.7,2006.6,2.35339]
[1743011925815,0.00748148,2006.8,2006.7,0.99654]
[1743011926021,0.00748148,2006.8,2006.7,4.15941523]
[1743011927016,0.99633,2007.2,2006.8,2.49112]
[1743011927215,0.99633,2007.2,2007.1,0.99634]
[1743011927420,2.41203,2007.2,2007.1,1.51111523]
[1743011927917,0.99634,2007.1,2007.0,2.34135]
[1743011928118,3.80388,2007.4,2007.1,0.9963]